[Event "11th LCC Super Blitz 2019"]
[Site "London"]
[Date "2019.12.08"]
[Round "4.4"]
[White "Rahman, Asad"]
[Black "Cox, John J"]
[Result "0-1"]
[ECO "C04"]
[WhiteElo "1923"]
[BlackElo "2346"]
[Annotator "NA"]
[PlyCount "94"]
[EventDate "2019.12.08"]
[EventType "swiss"]
[EventCountry "ENG"]
[SourceTitle "playchess.com"]
[Source "ChessBase"]
[SourceQuality "1"]
[TimeControl "180+2"]

1. e4 {[%emt 0:00:00]} e6 {[%emt 0:00:00]} 2. d4 {[%emt 0:00:02]} d5 {[%emt 0:00:01]} 3. Nd2 {[%emt 0:00:01]} Nc6 {[%emt 0:00:02]} 4. Ngf3 {[%emt 0:00:05]} Nf6 {[%emt 0:00:01]} 5. exd5 {[%emt 0:00:03]} exd5 {[%emt 0:00:02]} 6. Bd3 {[%emt 0:00:04]} Bd6 {[%emt 0:00:06]} 7. O-O {[%emt 0:00:02]} O-O {[%emt 0:00:07]} 8. c4 {[%emt 0:00:04]} dxc4 {[%emt 0:00:03]} 9. Nxc4 {[%emt 0:00:01]} Bg4 {[%emt 0:00:02]} 10. Be3 {[%emt 0:00:12]} Re8 {[%emt 0:00:11]} 11. h3 {[%emt 0:00:02]} Bh5 {[%emt 0:00:01]} 12. Be2 {[%emt 0:00:01]} Qe7 {[%emt 0:00:08]} 13. Re1 {[%emt 0:00:12]} Rad8 {[%emt 0:00:04]} 14. Qb3 {[%emt 0:00:05]} b6 {[%emt 0:00:12]} 15. Rac1 {[%emt 0:00:04]} Nb8 {[%emt 0:00:11]} 16. Nce5 {[%emt 0:00:06]} Qe6 {[%emt 0:00:10]} 17. Bc4 {[%emt 0:00:06]} Qe7 {[%emt 0:00:06]} 18. Nxf7 {[%emt 0:00:06]} Bxf7 {[%emt 0:00:03]} 19. Bg5 {[%emt 0:00:16]} Bxc4 {[%emt 0:00:11]} 20. Qxc4+ {[%emt 0:00:13]} Qf7 {[%emt 0:00:00]} 21. Ne5 {[%emt 0:00:03]} Qxc4 {[%emt 0:00:07]} 22. Rxc4 {[%emt 0:00:02]} Nbd7 {[%emt 0:00:04]} 23. f4 {[%emt 0:00:04]} h6 {[%emt 0:00:06]} 24. Bh4 {[%emt 0:00:01]} c5 {[%emt 0:00:24]} 25. Rd1 {[%emt 0:00:05]} cxd4 {[%emt 0:00:03]} 26. Nc6 {[%emt 0:00:24]} Rc8 {[%emt 0:00:06]} 27. a3 {[%emt 0:00:03]} Bxf4 {[%emt 0:00:05]} 28. b4 {[%emt 0:00:09]} Kh7 {[%emt 0:00:04]} 29. b5 {[%emt 0:00:07]} Be3+ {[%emt 0:00:03]} 30. Kh2 {[%emt 0:00:03]} Nc5 {[%emt 0:00:02]} 31. Nxa7 {[%emt 0:00:06]} Ra8 {[%emt 0:00:05]} 32. Nc6 {[%emt 0:00:03]} Rxa3 {[%emt 0:00:01]} 33. Nxd4 {[%emt 0:00:03]} Rd8 {[%emt 0:00:04]} 34. Be1 {[%emt 0:00:20]} Ra4 {[%emt 0:00:04]} 35. Rxa4 {[%emt 0:00:17]} Nxa4 {[%emt 0:00:01]} 36. Ra1 {[%emt 0:00:11]} Rxd4 {[%emt 0:00:02]} 37. Ra3 {[%emt 0:00:01]} Bf4+ {[%emt 0:00:02]} 38. g3 {[%emt 0:00:02]} Bd6 {[%emt 0:00:02]} 39. Rf3 {[%emt 0:00:02]} Nc5 {[%emt 0:00:01]} 40. h4 {[%emt 0:00:04]} Nce4 {[%emt 0:00:04]} 41. Kh3 {[%emt 0:00:03]} h5 {[%emt 0:00:02]} 42. Bf2 {[%emt 0:00:04]} Nxf2+ {[%emt 0:00:02]} 43. Rxf2 {[%emt 0:00:01]} Rd3 {[%emt 0:00:01]} 44. Rg2 {[%emt 0:00:01]} Rxg3+ {[%emt 0:00:02]} 45. Rxg3 {[%emt 0:00:01]} Bxg3 {[%emt 0:00:01]} 46. Kxg3 Nd5 47. Kf3 {[%emt 0:00:03]} Nc7 {[%emt 0:00:01]} 0-1

[Event "11th LCC Super Blitz 2019"]
[Site "London"]
[Date "2019.12.08"]
[Round "4.4"]
[White "Stamatopoulos, Apostolos"]
[Black "Bukojemski, Adam"]
[Result "0-1"]
[ECO "E61"]
[WhiteElo "1782"]
[BlackElo "2219"]
[Annotator "NA"]
[PlyCount "132"]
[EventDate "2019.12.08"]
[EventType "swiss"]
[EventCountry "ENG"]
[SourceTitle "playchess.com"]
[Source "ChessBase"]
[SourceQuality "1"]
[TimeControl "180+2"]

1. d4 {[%emt 0:00:00]} Nf6 {[%emt 0:00:00]} 2. Nf3 {[%emt 0:00:01]} g6 {[%emt 0:00:00]} 3. c4 {[%emt 0:00:01]} Bg7 {[%emt 0:00:01]} 4. Bf4 {[%emt 0:00:04]} c5 {[%emt 0:00:03]} 5. e3 {[%emt 0:00:04]} O-O {[%emt 0:00:05]} 6. Nc3 {[%emt 0:00:03]} d6 {[%emt 0:00:03]} 7. h3 {[%emt 0:00:01]} b6 {[%emt 0:00:04]} 8. Be2 {[%emt 0:00:02]} Bb7 {[%emt 0:00:01]} 9. O-O {[%emt 0:00:04]} Nbd7 {[%emt 0:00:01]} 10. d5 {[%emt 0:00:07]} a6 {[%emt 0:00:05]} 11. Qc2 {[%emt 0:00:10]} Re8 {[%emt 0:00:02]} 12. Rad1 {[%emt 0:00:07]} Ra7 {[%emt 0:00:02]} 13. a3 {[%emt 0:00:09]} Ba8 {[%emt 0:00:02]} 14. Rfe1 {[%emt 0:00:10]} Nf8 {[%emt 0:00:01]} 15. Bh2 {[%emt 0:00:06]} Rd7 {[%emt 0:00:02]} 16. e4 {[%emt 0:00:07]} e5 {[%emt 0:00:02]} 17. dxe6 {[%emt 0:00:34]} Nxe6 {[%emt 0:00:12]} 18. Nd5 {[%emt 0:00:19]} Nxd5 {[%emt 0:00:02]} 19. exd5 {[%emt 0:00:05]} Nc7 {[%emt 0:00:01]} 20. h4 {[%emt 0:00:31]} Rde7 {[%emt 0:00:13]} 21. Bd3 {[%emt 0:00:10]} b5 {[%emt 0:00:06]} 22. b3 {[%emt 0:00:06]} Bb7 {[%emt 0:00:04]} 23. h5 {[%emt 0:00:03]} Bc8 {[%emt 0:00:02]} 24. hxg6 {[%emt 0:00:01]} hxg6 {[%emt 0:00:04]} 25. Bg3 {[%emt 0:00:06]} Bg4 {[%emt 0:00:15]} 26. Rxe7 {[%emt 0:00:09]} Qxe7 {[%emt 0:00:05]} 27. Re1 {[%emt 0:00:03]} Qf6 {[%emt 0:00:05]} 28. Rxe8+ {[%emt 0:00:01]} Nxe8 {[%emt 0:00:01]} 29. Qe2 {[%emt 0:00:10]} Nc7 {[%emt 0:00:04]} 30. cxb5 {[%emt 0:00:02]} axb5 {[%emt 0:00:01]} 31. Bxb5 {[%emt 0:00:05]} Nxd5 {[%emt 0:00:10]} 32. Bc4 {[%emt 0:00:02]} Ne7 {[%emt 0:00:08]} 33. Bh4 {[%emt 0:00:01]} Qxh4 {[%emt 0:00:07]} 34. Nxh4 {[%emt 0:00:05]} Bxe2 {[%emt 0:00:01]} 35. Bxe2 {[%emt 0:00:01]} d5 {[%emt 0:00:08]} 36. a4 {[%emt 0:00:01]} Bc3 {[%emt 0:00:02]} 37. Nf3 {[%emt 0:00:04]} Nc6 {[%emt 0:00:03]} 38. Bb5 {[%emt 0:00:02]} Na5 {[%emt 0:00:01]} 39. Kf1 {[%emt 0:00:10]} Nxb3 {[%emt 0:00:01]} 40. Ke2 {[%emt 0:00:01]} Na5 {[%emt 0:00:11]} 41. Kd3 {[%emt 0:00:03]} Bf6 {[%emt 0:00:06]} 42. Nd2 {[%emt 0:00:01]} Kf8 {[%emt 0:00:04]} 43. Nb1 {[%emt 0:00:04]} Ke7 {[%emt 0:00:02]} 44. Nc3 {[%emt 0:00:01]} Kd6 {[%emt 0:00:01]} 45. Be8 {[%emt 0:00:01]} c4+ {[%emt 0:00:02]} 46. Kc2 {[%emt 0:00:05]} Bxc3 {[%emt 0:00:13]} 47. Kxc3 {[%emt 0:00:00]} Kc5 {[%emt 0:00:01]} 48. Bxf7 {[%emt 0:00:02]} g5 {[%emt 0:00:01]} 49. g3 {[%emt 0:00:03]} d4+ {[%emt 0:00:02]} 50. Kc2 {[%emt 0:00:01]} Kb4 {[%emt 0:00:02]} 51. Be8 {[%emt 0:00:02]} Nb7 {[%emt 0:00:04]} 52. Bc6 {[%emt 0:00:02]} Nc5 {[%emt 0:00:04]} 53. Bd5 {[%emt 0:00:06]} Nxa4 {[%emt 0:00:05]} 54. f4 {[%emt 0:00:00]} gxf4 {[%emt 0:00:01]} 55. gxf4 {[%emt 0:00:01]} Nc5 {[%emt 0:00:02]} 56. f5 {[%emt 0:00:01]} Nd7 {[%emt 0:00:02]} 57. Be6 {[%emt 0:00:04]} Nf6 {[%emt 0:00:01]} 58. Bf7 {[%emt 0:00:03]} Kc5 {[%emt 0:00:06]} 59. Be6 {[%emt 0:00:02]} Ng4 {[%emt 0:00:03]} 60. Kd2 {[%emt 0:00:04]} c3+ {[%emt 0:00:04]} 61. Kc2 {[%emt 0:00:03]} Ne5 {[%emt 0:00:07]} 62. f6 {[%emt 0:00:02]} Kb4 {[%emt 0:00:01]} 63. f7 {[%emt 0:00:03]} d3+ {[%emt 0:00:00]} 64. Kd1 {[%emt 0:00:02]} c2+ {[%emt 0:00:04]} 65. Kd2 {[%emt 0:00:02]} Nf3+ {[%emt 0:00:01]} 66. Kc1 {[%emt 0:00:01]} Kc3 {[%emt 0:00:01]} 0-1

[Event "11th LCC Super Blitz 2019"]
[Site "London"]
[Date "2019.12.08"]
[Round "4.5"]
[White "Roberson, Peter T"]
[Black "Balaji, Aaravamudhan"]
[Result "1-0"]
[ECO "C78"]
[WhiteElo "2282"]
[BlackElo "2120"]
[Annotator "NA"]
[PlyCount "121"]
[EventDate "2019.12.08"]
[EventType "swiss"]
[EventCountry "ENG"]
[SourceTitle "playchess.com"]
[Source "ChessBase"]
[SourceQuality "1"]
[TimeControl "180+2"]

1. e4 {[%emt 0:00:00]} e5 {[%emt 0:00:00]} 2. Nf3 {[%emt 0:00:00]} Nc6 {[%emt 0:00:00]} 3. Bb5 {[%emt 0:00:01]} a6 {[%emt 0:00:00]} 4. Ba4 {[%emt 0:00:00]} Nf6 {[%emt 0:00:00]} 5. O-O {[%emt 0:00:01]} b5 {[%emt 0:00:01]} 6. Bb3 {[%emt 0:00:01]} Bc5 {[%emt 0:00:01]} 7. a4 {[%emt 0:00:01]} Rb8 {[%emt 0:00:01]} 8. c3 {[%emt 0:00:03]} d6 {[%emt 0:00:04]} 9. d4 {[%emt 0:00:00]} Bb6 {[%emt 0:00:02]} 10. a5 {[%emt 0:00:01]} Ba7 {[%emt 0:00:02]} 11. h3 {[%emt 0:00:01]} O-O {[%emt 0:00:04]} 12. Be3 {[%emt 0:00:01]} exd4 {[%emt 0:00:22]} 13. cxd4 {[%emt 0:00:02]} d5 {[%emt 0:00:01]} 14. e5 {[%emt 0:00:05]} Ne4 {[%emt 0:00:01]} 15. Nc3 {[%emt 0:00:03]} b4 {[%emt 0:00:13]} 16. Nxd5 {[%emt 0:00:07]} Be6 {[%emt 0:00:15]} 17. Nf4 {[%emt 0:00:13]} Bxb3 {[%emt 0:00:13]} 18. Qxb3 {[%emt 0:00:01]} Nxd4 {[%emt 0:00:13]} 19. Bxd4 {[%emt 0:01:02]} Bxd4 {[%emt 0:00:02]} 20. Rad1 {[%emt 0:00:22]} c5 {[%emt 0:00:07]} 21. Qc2 {[%emt 0:00:01]} Ng5 {[%emt 0:00:15]} 22. Nxd4 {[%emt 0:00:17]} cxd4 {[%emt 0:00:01]} 23. Qc4 {[%emt 0:00:01]} Qxa5 {[%emt 0:00:10]} 24. Rfe1 {[%emt 0:00:19]} b3 {[%emt 0:00:14]} 25. Qxd4 {[%emt 0:00:18]} Ne6 {[%emt 0:00:34]} 26. Nxe6 {[%emt 0:00:04]} fxe6 {[%emt 0:00:01]} 27. Qc4 {[%emt 0:00:01]} Qb6 {[%emt 0:00:02]} 28. Re3 {[%emt 0:00:02]} Rfc8 {[%emt 0:00:15]} 29. Qg4 {[%emt 0:00:05]} Re8 {[%emt 0:00:18]} 30. Rd7 {[%emt 0:00:03]} g6 {[%emt 0:00:04]} 31. Qf4 {[%emt 0:00:03]} Rf8 {[%emt 0:00:20]} 32. Qh6 Rf7 33. Rxf7 {[%emt 0:00:02]} Kxf7 {[%emt 0:00:01]} 34. Qxh7+ {[%emt 0:00:01]} Ke8 {[%emt 0:00:04]} 35. Qxg6+ {[%emt 0:00:16]} Kd7 {[%emt 0:00:02]} 36. Qf7+ {[%emt 0:00:02]} Kc6 {[%emt 0:00:05]} 37. Qxe6+ {[%emt 0:00:02]} Kc5 {[%emt 0:00:03]} 38. Rc3+ {[%emt 0:00:07]} Kd4 {[%emt 0:00:01]} 39. Qf5 {[%emt 0:00:17]} Qb5 {[%emt 0:00:03]} 40. Qf4+ {[%emt 0:00:07]} Kd5 {[%emt 0:00:00]} 41. Qe3 {[%emt 0:00:01]} Ke6 {[%emt 0:00:02]} 42. Qf3 {[%emt 0:00:02]} Qb4 {[%emt 0:00:04]} 43. Qf6+ {[%emt 0:00:02]} Kd7 {[%emt 0:00:01]} 44. Rd3+ {[%emt 0:00:01]} Kc7 {[%emt 0:00:01]} 45. Qd6+ {[%emt 0:00:02]} Qxd6 {[%emt 0:00:01]} 46. exd6+ {[%emt 0:00:01]} Kd7 {[%emt 0:00:01]} 47. g4 a5 48. g5 {[%emt 0:00:01]} a4 49. Rd1 {[%emt 0:00:06]} Rb5 {[%emt 0:00:03]} 50. f4 {[%emt 0:00:01]} Rf5 {[%emt 0:00:01]} 51. Kg2 {[%emt 0:00:01]} Rxf4 {[%emt 0:00:02]} 52. Kg3 {[%emt 0:00:01]} Rf5 {[%emt 0:00:05]} 53. h4 {[%emt 0:00:01]} Rc5 {[%emt 0:00:03]} 54. Ra1 {[%emt 0:00:03]} Kxd6 {[%emt 0:00:05]} 55. Rxa4 {[%emt 0:00:01]} Rc2 {[%emt 0:00:01]} 56. g6 {[%emt 0:00:05]} Ke6 {[%emt 0:00:02]} 57. h5 {[%emt 0:00:02]} Kf6 {[%emt 0:00:01]} 58. Rf4+ {[%emt 0:00:02]} Kg7 {[%emt 0:00:05]} 59. Rf2 {[%emt 0:00:01]} Rc5 {[%emt 0:00:01]} 60. Rf3 {[%emt 0:00:04]} Rb5 {[%emt 0:00:03]} 61. Kg4 {[%emt 0:00:01]} 1-0

[Event "11th LCC Super Blitz 2019"]
[Site "London"]
[Date "2019.12.08"]
[Round "4.5"]
[White "Tanmay Chopra"]
[Black "Orlovska, Madara"]
[Result "1-0"]
[ECO "A80"]
[WhiteElo "2100"]
[BlackElo "2072"]
[Annotator "NA"]
[PlyCount "45"]
[EventDate "2019.12.08"]
[EventType "swiss"]
[EventCountry "ENG"]
[SourceTitle "playchess.com"]
[Source "ChessBase"]
[SourceQuality "1"]
[TimeControl "180+2"]

1. d4 {[%emt 0:00:00]} f5 {[%emt 0:00:00]} 2. Nc3 {[%emt 0:00:06]} Nf6 {[%emt 0:00:00]} 3. Bg5 {[%emt 0:00:01]} g6 {[%emt 0:00:03]} 4. Qd2 {[%emt 0:00:11]} Bg7 {[%emt 0:00:02]} 5. Bh6 {[%emt 0:00:01]} O-O {[%emt 0:00:11]} 6. Bxg7 {[%emt 0:00:01]} Kxg7 {[%emt 0:00:01]} 7. h4 {[%emt 0:00:02]} h5 {[%emt 0:00:01]} 8. Nh3 {[%emt 0:00:07]} Nc6 {[%emt 0:00:21]} 9. O-O-O {[%emt 0:00:23]} e5 {[%emt 0:00:14]} 10. d5 {[%emt 0:00:01]} Na5 {[%emt 0:00:12]} 11. e4 {[%emt 0:00:11]} Nxe4 {[%emt 0:00:12]} 12. Nxe4 {[%emt 0:00:02]} fxe4 {[%emt 0:00:00]} 13. Qxa5 {[%emt 0:00:01]} b6 {[%emt 0:00:11]} 14. Qb4 {[%emt 0:00:04]} Qxh4 {[%emt 0:00:06]} 15. Be2 {[%emt 0:00:17]} a5 {[%emt 0:00:01]} 16. Qc3 {[%emt 0:00:01]} d6 {[%emt 0:00:02]} 17. Qxc7+ {[%emt 0:00:02]} Rf7 {[%emt 0:00:02]} 18. Qxd6 {[%emt 0:00:02]} Bg4 {[%emt 0:00:00]} 19. Qxe5+ {[%emt 0:00:07]} Kg8 {[%emt 0:00:01]} 20. Ng5 {[%emt 0:00:07]} Qxf2 {[%emt 0:00:03]} 21. Bxg4 {[%emt 0:00:01]} Qf4+ {[%emt 0:00:14]} 22. Qxf4 {[%emt 0:00:02]} Rxf4 {[%emt 0:00:01]} 23. Be6+ {[%emt 0:00:03]} 1-0

[Event "11th LCC Super Blitz 2019"]
[Site "London"]
[Date "2019.12.08"]
[Round "4.5"]
[White "Kennedy, Craig"]
[Black "Rishi, Thariani"]
[Result "0-1"]
[ECO "A00"]
[WhiteElo "1899"]
[BlackElo "2008"]
[Annotator "NA"]
[PlyCount "76"]
[EventDate "2019.12.08"]
[EventType "swiss"]
[EventCountry "ENG"]
[SourceTitle "playchess.com"]
[Source "ChessBase"]
[SourceQuality "1"]
[TimeControl "180+2"]

1. a3 {[%emt 0:00:00]} d5 {[%emt 0:00:00]} 2. g3 {[%emt 0:00:02]} c6 {[%emt 0:00:01]} 3. Bg2 {[%emt 0:00:02]} e5 {[%emt 0:00:01]} 4. d3 {[%emt 0:00:02]} Nf6 {[%emt 0:00:05]} 5. Nd2 {[%emt 0:00:03]} Bd6 {[%emt 0:00:03]} 6. b4 {[%emt 0:00:02]} O-O {[%emt 0:00:02]} 7. Bb2 {[%emt 0:00:01]} Re8 {[%emt 0:00:01]} 8. Ngf3 {[%emt 0:00:10]} a5 {[%emt 0:00:08]} 9. c3 {[%emt 0:00:04]} Na6 {[%emt 0:00:06]} 10. e4 {[%emt 0:00:04]} Nc7 {[%emt 0:00:11]} 11. O-O {[%emt 0:00:03]} h6 {[%emt 0:00:09]} 12. Nh4 {[%emt 0:00:12]} g6 {[%emt 0:00:19]} 13. Nb3 {[%emt 0:00:16]} a4 {[%emt 0:00:07]} 14. Nd2 {[%emt 0:00:03]} Bf8 {[%emt 0:00:09]} 15. c4 {[%emt 0:00:06]} dxc4 {[%emt 0:00:14]} 16. dxc4 {[%emt 0:00:04]} Bg7 {[%emt 0:00:16]} 17. c5 {[%emt 0:00:05]} Nb5 {[%emt 0:00:14]} 18. Nc4 {[%emt 0:00:10]} Nd4 {[%emt 0:00:23]} 19. Nb6 {[%emt 0:00:08]} Ra7 {[%emt 0:00:07]} 20. Nxa4 {[%emt 0:00:11]} Bg4 {[%emt 0:00:09]} 21. f3 {[%emt 0:00:08]} Be6 22. Nb6 {[%emt 0:00:05]} Qe7 {[%emt 0:00:11]} 23. Bxd4 exd4 24. e5 {[%emt 0:00:16]} Nd7 {[%emt 0:00:19]} 25. Nxd7 {[%emt 0:00:10]} Qxd7 {[%emt 0:00:00]} 26. f4 {[%emt 0:00:04]} Bc4 {[%emt 0:00:08]} 27. Re1 {[%emt 0:00:07]} g5 {[%emt 0:00:03]} 28. Qc2 {[%emt 0:00:19]} Be6 {[%emt 0:00:13]} 29. fxg5 {[%emt 0:00:21]} hxg5 {[%emt 0:00:02]} 30. Nf3 {[%emt 0:00:02]} d3 31. Qd2 {[%emt 0:00:04]} g4 {[%emt 0:00:03]} 32. Nh4 {[%emt 0:00:08]} Qd4+ {[%emt 0:00:04]} 33. Kh1 {[%emt 0:00:03]} Bd7 {[%emt 0:00:04]} 34. Rad1 {[%emt 0:00:02]} Rxa3 {[%emt 0:00:01]} 35. Re4 {[%emt 0:00:07]} Qc3 {[%emt 0:00:04]} 36. Qg5 {[%emt 0:00:10]} Ra1 {[%emt 0:00:01]} 37. Rde1 {[%emt 0:00:13]} Rxe1+ {[%emt 0:00:02]} 38. Rxe1 {[%emt 0:00:01]} Qxe1+ {[%emt 0:00:01]} 0-1

[Event "11th LCC Super Blitz 2019"]
[Site "London"]
[Date "2019.12.08"]
[Round "4.6"]
[White "Van Zyl-Rudd, Jack"]
[Black "Pappelis, Dimitrios"]
[Result "1-0"]
[ECO "D30"]
[WhiteElo "2290"]
[BlackElo "2160"]
[Annotator "NA"]
[PlyCount "83"]
[EventDate "2019.12.08"]
[EventType "swiss"]
[EventCountry "ENG"]
[SourceTitle "playchess.com"]
[Source "ChessBase"]
[SourceQuality "1"]
[TimeControl "180+2"]

1. d4 {[%emt 0:00:00]} d5 {[%emt 0:00:00]} 2. c4 {[%emt 0:00:00]} e6 {[%emt 0:00:00]} 3. Nc3 {[%emt 0:00:01]} c5 {[%emt 0:00:03]} 4. cxd5 exd5 {[%emt 0:00:00]} 5. Nf3 {[%emt 0:00:04]} Nc6 {[%emt 0:00:01]} 6. g3 {[%emt 0:00:01]} Nf6 {[%emt 0:00:02]} 7. Bg2 {[%emt 0:00:01]} Be7 {[%emt 0:00:01]} 8. O-O {[%emt 0:00:02]} O-O {[%emt 0:00:02]} 9. dxc5 {[%emt 0:00:01]} Bxc5 {[%emt 0:00:01]} 10. a3 {[%emt 0:00:01]} Re8 {[%emt 0:00:22]} 11. b4 {[%emt 0:00:03]} Bb6 {[%emt 0:00:01]} 12. Bb2 {[%emt 0:00:07]} Bg4 {[%emt 0:00:05]} 13. Na4 {[%emt 0:00:06]} d4 {[%emt 0:00:35]} 14. Nxb6 {[%emt 0:00:25]} Qxb6 {[%emt 0:00:01]} 15. Bxd4 {[%emt 0:00:06]} Nxd4 {[%emt 0:00:07]} 16. Qxd4 {[%emt 0:00:02]} Rxe2 {[%emt 0:00:45]} 17. Qxb6 axb6 {[%emt 0:00:01]} 18. Nd4 {[%emt 0:00:17]} Re7 {[%emt 0:00:07]} 19. a4 {[%emt 0:00:52]} Kf8 {[%emt 0:00:14]} 20. a5 {[%emt 0:00:37]} bxa5 {[%emt 0:00:03]} 21. bxa5 {[%emt 0:00:02]} Rd8 {[%emt 0:00:04]} 22. Nb5 {[%emt 0:00:09]} Be2 {[%emt 0:00:19]} 23. Rfb1 {[%emt 0:00:02]} Bd3 {[%emt 0:00:05]} 24. Rb2 {[%emt 0:00:04]} Be4 {[%emt 0:00:09]} 25. Bxe4 {[%emt 0:00:06]} Nxe4 {[%emt 0:00:01]} 26. Re1 {[%emt 0:00:13]} Nc5 {[%emt 0:00:06]} 27. Rxe7 Kxe7 {[%emt 0:00:01]} 28. Nc3 {[%emt 0:00:16]} Ra8 {[%emt 0:00:19]} 29. Rb5 {[%emt 0:00:01]} Kd6 {[%emt 0:00:01]} 30. Ne2 {[%emt 0:00:08]} Kc6 {[%emt 0:00:04]} 31. Nd4+ {[%emt 0:00:02]} Kd5 {[%emt 0:00:14]} 32. Nb3 {[%emt 0:00:02]} Kc4 {[%emt 0:00:01]} 33. Rxc5+ {[%emt 0:00:03]} Kxb3 {[%emt 0:00:01]} 34. Rb5+ {[%emt 0:00:01]} Kc4 {[%emt 0:00:02]} 35. Rxb7 {[%emt 0:00:01]} Rxa5 {[%emt 0:00:06]} 36. Rxf7 {[%emt 0:00:01]} Rg5 {[%emt 0:00:01]} 37. h4 {[%emt 0:00:02]} Rg6 {[%emt 0:00:02]} 38. Kg2 {[%emt 0:00:01]} Kd5 {[%emt 0:00:03]} 39. f4 {[%emt 0:00:01]} h5 {[%emt 0:00:03]} 40. Rf5+ {[%emt 0:00:04]} Ke4 {[%emt 0:00:02]} 41. Rxh5 {[%emt 0:00:01]} Rg4 {[%emt 0:00:04]} 42. Rg5 {[%emt 0:00:01]} 1-0

[Event "11th LCC Super Blitz 2019"]
[Site "London"]
[Date "2019.12.08"]
[Round "4.6"]
[White "Marusenko, Petr"]
[Black "Nettleton, Charlie B"]
[Result "1-0"]
[ECO "A51"]
[WhiteElo "2085"]
[BlackElo "2021"]
[Annotator "NA"]
[PlyCount "117"]
[EventDate "2019.12.08"]
[EventType "swiss"]
[EventCountry "ENG"]
[SourceTitle "playchess.com"]
[Source "ChessBase"]
[SourceQuality "1"]
[TimeControl "180+2"]

1. d4 {[%emt 0:00:00]} Nf6 {[%emt 0:00:00]} 2. c4 {[%emt 0:00:00]} e5 {[%emt 0:00:00]} 3. dxe5 {[%emt 0:00:04]} Ne4 {[%emt 0:00:01]} 4. Nf3 {[%emt 0:00:17]} Bb4+ {[%emt 0:00:13]} 5. Bd2 {[%emt 0:00:05]} Nxd2 {[%emt 0:00:02]} 6. Nbxd2 {[%emt 0:00:02]} Nc6 {[%emt 0:00:01]} 7. a3 {[%emt 0:00:04]} Bxd2+ {[%emt 0:00:02]} 8. Qxd2 {[%emt 0:00:01]} Qe7 {[%emt 0:00:01]} 9. Qc3 {[%emt 0:00:04]} O-O {[%emt 0:00:08]} 10. g3 {[%emt 0:00:07]} Re8 {[%emt 0:00:08]} 11. Bg2 {[%emt 0:00:03]} Nxe5 {[%emt 0:00:01]} 12. O-O {[%emt 0:00:05]} d6 {[%emt 0:00:02]} 13. Nd4 {[%emt 0:00:06]} a5 {[%emt 0:00:12]} 14. Rad1 {[%emt 0:00:06]} a4 {[%emt 0:00:12]} 15. h3 {[%emt 0:00:15]} Nd7 {[%emt 0:00:02]} 16. Rfe1 {[%emt 0:00:08]} Nc5 {[%emt 0:00:01]} 17. Nc2 {[%emt 0:00:08]} Be6 {[%emt 0:00:05]} 18. Ne3 {[%emt 0:00:02]} Rf8 {[%emt 0:00:27]} 19. Nd5 {[%emt 0:00:03]} Qd7 {[%emt 0:00:01]} 20. Kh2 {[%emt 0:00:03]} f5 {[%emt 0:00:01]} 21. Nf4 {[%emt 0:00:05]} Kh8 {[%emt 0:00:17]} 22. Nxe6 {[%emt 0:00:04]} Qxe6 {[%emt 0:00:02]} 23. e3 {[%emt 0:00:15]} Rae8 {[%emt 0:00:02]} 24. Bd5 {[%emt 0:00:08]} Qh6 {[%emt 0:00:05]} 25. Rd4 {[%emt 0:00:17]} Ne4 {[%emt 0:00:09]} 26. Qc2 {[%emt 0:00:01]} Ng5 {[%emt 0:00:08]} 27. Rh4 {[%emt 0:00:10]} Qf6 {[%emt 0:00:01]} 28. Re2 {[%emt 0:00:07]} c6 {[%emt 0:00:01]} 29. Bg2 {[%emt 0:00:02]} Re7 {[%emt 0:00:06]} 30. Qxa4 {[%emt 0:00:03]} Rfe8 {[%emt 0:00:01]} 31. Qd1 {[%emt 0:00:05]} h6 {[%emt 0:00:03]} 32. Rd2 {[%emt 0:00:01]} Re6 {[%emt 0:00:06]} 33. Rhd4 {[%emt 0:00:02]} Nf7 {[%emt 0:00:02]} 34. b4 {[%emt 0:00:02]} g5 {[%emt 0:00:03]} 35. b5 {[%emt 0:00:02]} cxb5 {[%emt 0:00:10]} 36. cxb5 {[%emt 0:00:02]} R8e7 {[%emt 0:00:11]} 37. Bd5 {[%emt 0:00:03]} Re5 {[%emt 0:00:01]} 38. Bxf7 {[%emt 0:00:01]} Qxf7 {[%emt 0:00:03]} 39. Rxd6 {[%emt 0:00:03]} f4 {[%emt 0:00:02]} 40. exf4 {[%emt 0:00:13]} gxf4 {[%emt 0:00:02]} 41. Rxh6+ {[%emt 0:00:02]} Kg7 {[%emt 0:00:03]} 42. Rh4 {[%emt 0:00:02]} fxg3+ {[%emt 0:00:02]} 43. fxg3 {[%emt 0:00:03]} Rg5 {[%emt 0:00:08]} 44. Rg4 {[%emt 0:00:03]} Qf5 {[%emt 0:00:33]} 45. Qa1+ {[%emt 0:00:15]} Kh7 {[%emt 0:00:02]} 46. Rh4+ {[%emt 0:00:02]} Rh5 {[%emt 0:00:01]} 47. Rxh5+ {[%emt 0:00:07]} Qxh5 {[%emt 0:00:01]} 48. Qb1+ {[%emt 0:00:02]} Kg7 {[%emt 0:00:02]} 49. Qd3 {[%emt 0:00:01]} Qe5 {[%emt 0:00:10]} 50. Qd4 {[%emt 0:00:03]} Kf6 {[%emt 0:00:04]} 51. Rf2+ {[%emt 0:00:04]} Kg6 {[%emt 0:00:01]} 52. Qxe5 {[%emt 0:00:02]} Rxe5 {[%emt 0:00:00]} 53. a4 {[%emt 0:00:02]} Re4 {[%emt 0:00:01]} 54. Ra2 {[%emt 0:00:01]} Rb4 {[%emt 0:00:02]} 55. h4 {[%emt 0:00:02]} Kh5 {[%emt 0:00:02]} 56. Kh3 {[%emt 0:00:01]} Rb3 {[%emt 0:00:01]} 57. Rd2 {[%emt 0:00:04]} Rb4 {[%emt 0:00:02]} 58. Rd5+ {[%emt 0:00:02]} Kh6 {[%emt 0:00:01]} 59. a5 {[%emt 0:00:01]} 1-0

[Event "11th LCC Super Blitz 2019"]
[Site "London"]
[Date "2019.12.08"]
[Round "4.6"]
[White "Rushbrooke, Remy"]
[Black "Toh, Q Kane"]
[Result "0-1"]
[ECO "B09"]
[WhiteElo "1877"]
[BlackElo "1606"]
[Annotator "NA"]
[PlyCount "53"]
[EventDate "2019.12.08"]
[EventType "swiss"]
[EventCountry "ENG"]
[SourceTitle "playchess.com"]
[Source "ChessBase"]
[SourceQuality "1"]
[TimeControl "180+2"]

1. d4 {[%emt 0:00:00]} Nf6 {[%emt 0:00:00]} 2. Nc3 {[%emt 0:00:00]} g6 {[%emt 0:00:02]} 3. e4 d6 {[%emt 0:00:01]} 4. f4 {[%emt 0:00:02]} Bg7 {[%emt 0:00:01]} 5. Nf3 {[%emt 0:00:00]} O-O {[%emt 0:00:02]} 6. e5 {[%emt 0:00:03]} Nfd7 {[%emt 0:00:09]} 7. Bc4 {[%emt 0:00:00]} Nb6 {[%emt 0:00:15]} 8. Bb3 {[%emt 0:00:01]} e6 {[%emt 0:00:10]} 9. h4 {[%emt 0:00:08]} dxe5 {[%emt 0:00:09]} 10. dxe5 {[%emt 0:00:01]} Qxd1+ {[%emt 0:00:06]} 11. Kxd1 {[%emt 0:00:01]} Bd7 {[%emt 0:00:10]} 12. h5 {[%emt 0:00:20]} Bc6 {[%emt 0:00:06]} 13. hxg6 {[%emt 0:00:29]} hxg6 {[%emt 0:00:01]} 14. Be3 {[%emt 0:00:26]} N8d7 {[%emt 0:00:13]} 15. Ke2 {[%emt 0:00:14]} Rfd8 {[%emt 0:00:10]} 16. Ng5 {[%emt 0:00:38]} Bxg2 {[%emt 0:00:13]} 17. Rh2 {[%emt 0:00:12]} Bc6 {[%emt 0:00:01]} 18. Rg1 {[%emt 0:00:13]} Nf8 {[%emt 0:00:16]} 19. Nce4 {[%emt 0:00:25]} Bxe4 {[%emt 0:00:21]} 20. Nxe4 {[%emt 0:00:03]} Nd5 {[%emt 0:00:05]} 21. Bxd5 {[%emt 0:00:12]} Rxd5 {[%emt 0:00:11]} 22. Rg3 {[%emt 0:00:01]} Nd7 {[%emt 0:00:41]} 23. c4 {[%emt 0:00:12]} Ra5 {[%emt 0:00:04]} 24. Bd4 {[%emt 0:00:00]} c5 {[%emt 0:00:03]} 25. Bc3 {[%emt 0:00:01]} Ra6 {[%emt 0:00:05]} 26. Nf6+ {[%emt 0:00:01]} Nxf6 {[%emt 0:00:11]} 27. exf6 {[%emt 0:00:01]} 0-1